fUSD/lending_fUSD_20250329
["ID","MTS","AMOUNT","RATE_DAILY","PERIOD"]
[356819810,1743257435164,-151.0,0.000249,7]
[356819811,1743257435180,-151.0,0.000249,7]
[356819812,1743257435192,-151.0,0.000249,7]
[356819813,1743257435201,-151.0,0.000249,7]
[356819814,1743257435210,-151.0,0.000249,7]
[356819815,1743257435220,-151.325037,0.000249,7]
[356819816,1743257435230,-151.0,0.000249,7]
[356819817,1743257435240,-151.0,0.000249,7]
[356819818,1743257435249,-156.464831,0.000249,7]
[356819819,1743257435260,-250.0,0.00025,2]
[356819820,1743257435270,-150.0,0.00025086,2]
[356819821,1743257435280,-1303.3893765,0.00025118,2]
[356819822,1743257435289,-190.58,0.000255,7]
[356819823,1743257435301,-1000.0,0.00025629,2]
[356819824,1743257435311,-193.51,0.0002569,120]
[356819825,1743257435321,-150.0,0.00026027,2]
[356819826,1743257435331,-150.8,0.00026849,2]
[356819827,1743257435340,-158.02,0.00026849,2]
[356819828,1743257435350,-151.04,0.00026849,2]
[356819829,1743257435360,-300.0,0.00027,2]
[356819830,1743257435369,-1554.41,0.00027024,2]
[356819831,1743257435379,-150.0,0.00027397,2]
[356819832,1743257435389,-1162.88,0.00027397,2]
[356819833,1743257435399,-2471.33,0.000274,2]
[356819834,1743257435410,-3083.388,0.00027477,2]
[356819835,1743257435420,-151.0,0.00027477,2]
[356819836,1743257435430,-182.45115318,0.00028492,2]
[356819837,1743257435440,-1303.3893765,0.00028524,2]
[356819838,1743257435450,-150.0,0.00028767,2]
[356819839,1743257435460,-1162.88,0.00028767,2]
[356819840,1743257435470,-350.0,0.00029,2]
[356819841,1743257435479,-1554.41,0.00029288,2]
[356819842,1743257435489,-2000.0,0.0003,4]
[356819843,1743257435499,-172.20776555,0.000301,2]
[356819844,1743257435510,-10123.2,0.0003011,2]
[356819845,1743257435520,-150.0,0.00030136,2]
[356819846,1743257435530,-1162.88,0.00030137,2]
[356819847,1743257435540,-151.0,0.00030477,2]
[356819848,1743257435551,-151.19,0.0003089,2]
[356819849,1743257435561,-8987.98695814,0.000309,2]
[356819850,1743257435571,-30420.32602719,0.00031,2]
[356819851,1743257435581,-400.0,0.00031,2]
[356819852,1743257435591,-150.0,0.00031506,2]
[356819853,1743257435601,-1162.88,0.00031507,2]
[356819854,1743257435611,-1554.41,0.00031552,2]
[356819855,1743257435621,-1060.72146978,0.0003191,4]
[356819856,1743257435630,-1303.3893765,0.00031929,2]
[356819857,1743257435640,-1000.08840393,0.00032,2]
[356819858,1743257435650,-2479.53619216,0.00032,2]
[356819859,1743257435659,-2471.33,0.000321,2]
[356819860,1743257435670,-2000.0,0.000325,25]
[356819861,1743257435680,-28421.04149102,0.0003256,2]
[356819862,1743257435689,-150.0,0.0003262,2]
[356819863,1743257435699,-150.0,0.00032624,2]
[356819864,1743257435708,-150.0,0.00032638,2]
[356819865,1743257435718,-150.0,0.00032662,2]
[356819866,1743257435728,-1000.0,0.00032665,2]
[356819867,1743257435737,-150.0,0.00032692,2]
[356819868,1743257435747,-150.0,0.00032696,2]
[356819869,1743257435756,-150.0,0.00032698,2]
[356819870,1743257435766,-150.0,0.00032706,2]
[356819871,1743257435775,-150.0,0.00032717,2]
[356819872,1743257435784,-150.0,0.00032739,2]
[356819873,1743257435794,-150.0,0.00032742,2]
[356819874,1743257435804,-150.0,0.00032747,2]
[356819875,1743257435813,-165.90618088,0.00032763,30]
[356819876,1743257435823,-4629.60485094,0.000328,2]
[356819877,1743257435832,-150.0,0.00032801,2]
[356819878,1743257435841,-150.0,0.00032812,2]
[356819879,1743257435850,-150.0,0.00032819,2]
[356819880,1743257435859,-150.0,0.00032826,2]
[356819881,1743257435869,-150.0,0.00032835,2]
[356819882,1743257435878,-150.0,0.00032837,2]
[356819883,1743257435887,-150.0,0.00032842,2]
[356819884,1743257435897,-150.0,0.00032862,2]
[356819885,1743257435906,-150.0,0.00032863,2]
[356819886,1743257435916,-150.0,0.00032864,2]
[356819887,1743257435925,-150.0,0.00032873,2]
[356819888,1743257435934,-213.761262,0.00032876,2]
[356819889,1743257435944,-1162.88,0.00032877,2]
[356819890,1743257435953,-329.54,0.00032877,2]
[356819891,1743257435962,-150.0,0.00032884,2]
[356819892,1743257435972,-151.0,0.00032885,7]
[356819893,1743257435981,-183.70897,0.00032885,7]
[356819894,1743257435990,-153.334631,0.00032885,7]
[356819895,1743257435999,-256.782332,0.00032885,7]
[356819896,1743257436009,-250.802219,0.00032885,7]
[356819897,1743257436019,-151.0,0.00032885,7]
[356819898,1743257436032,-385.27537879,0.00032889,2]
[356819899,1743257436042,-270.35201745,0.00032892,2]
[356819900,1743257436051,-200.0,0.00032892,2]
[356819901,1743257436061,-2500.0,0.00032894,30]
[356819902,1743257436070,-151.0,0.00032896,7]
[356819903,1743257436080,-155.63812,0.00032896,7]
[356819904,1743257436090,-2741.33247211,0.00032896,30]
[356819905,1743257436100,-151.19,0.00032897,2]
[356819906,1743257436110,-745.0,0.000329,2]
[356819907,1743257436120,-151.0,0.00032907,7]
[356819908,1743257436129,-151.0,0.00032907,7]
[356819909,1743257436138,-151.0,0.00032907,7]
[356819910,1743257436148,-151.0,0.00032907,7]
[356819911,1743257436159,-190.149524,0.00032907,7]
[356819912,1743257436168,-151.0,0.00032907,7]
[356819913,1743257436178,-151.0,0.00032907,7]
[356819914,1743257436187,-151.0,0.00032907,7]
[356819915,1743257436197,-151.0,0.00032907,7]
[356819916,1743257436207,-151.882503,0.00032907,7]
[356819917,1743257436216,-239.72,0.00032907,5]
[356819918,1743257436225,-151.0,0.00032907,7]
[356819919,1743257436235,-1000.0,0.00032907,28]
[356819920,1743257436244,-1000.0,0.00032907,28]
[356819921,1743257436254,-151.0,0.00032907,7]
[356819922,1743257436263,-1000.0,0.00032907,28]
[356819923,1743257436273,-1000.0,0.00032907,28]
[356819924,1743257436283,-1000.0,0.00032907,28]
[356819925,1743257436293,-1000.0,0.00032907,28]
[356819926,1743257436303,-1000.0,0.00032907,28]
[356819927,1743257436313,-1000.0,0.00032907,28]
[356819928,1743257436322,-1000.0,0.00032907,28]
[356819929,1743257436333,-1000.0,0.00032907,28]
[356819930,1743257436343,-1000.0,0.00032907,28]
[356819931,1743257436353,-1000.0,0.00032907,28]
[356819932,1743257436362,-1000.0,0.00032907,28]
[356819933,1743257436372,-1000.0,0.00032907,28]
[356819934,1743257436382,-1000.0,0.00032907,28]
[356819935,1743257436391,-1000.0,0.00032907,28]
[356819936,1743257436402,-1000.0,0.00032907,28]
[356819937,1743257436411,-1000.0,0.00032907,28]
[356819938,1743257436420,-1000.0,0.00032907,28]
[356819939,1743257436431,-1000.0,0.00032907,28]
[356819940,1743257436440,-1000.0,0.00032907,28]
[356819941,1743257436451,-1000.0,0.00032907,28]
[356819942,1743257436460,-1000.0,0.00032907,28]
[356819943,1743257436469,-1000.0,0.00032907,28]
[356819944,1743257436480,-1000.0,0.00032907,28]
[356819945,1743257436489,-1000.0,0.00032907,28]
[356819946,1743257436499,-1000.0,0.00032907,28]
[356819947,1743257436508,-1000.0,0.00032907,28]
[356819948,1743257436518,-1000.0,0.00032907,28]
[356819949,1743257436528,-1000.0,0.00032907,28]
[356819950,1743257436537,-1000.0,0.00032907,28]
[356819951,1743257436547,-1000.0,0.00032907,28]
[356819952,1743257436557,-1000.0,0.00032907,28]
[356819953,1743257436566,-1000.0,0.00032907,28]
[356819954,1743257436576,-407.81718,0.00032907,28]
[356819955,1743257436586,-151.759823,0.00032907,7]
[356819956,1743257436596,-151.0,0.00032907,7]
[356819957,1743257436605,-151.0,0.00032907,7]
[356819958,1743257436615,-151.0,0.00032907,7]
[356819959,1743257436625,-154.582864,0.00032907,7]
[356819960,1743257436635,-151.0,0.00032907,7]
[356819961,1743257436644,-151.0,0.00032907,7]
[356819962,1743257436653,-151.0,0.00032907,7]
[356819963,1743257436663,-151.0,0.00032907,7]
[356819964,1743257436672,-151.0,0.00032907,7]
[356819965,1743257436682,-151.0,0.00032907,7]
[356819966,1743257436691,-151.0,0.00032907,7]
[356819967,1743257436701,-151.0,0.00032907,7]
[356819968,1743257436711,-151.0,0.00032907,7]
[356819969,1743257436721,-151.0,0.00032907,7]
[356819970,1743257436730,-151.0,0.00032907,7]
[356819971,1743257436739,-151.0,0.00032907,7]
[356819972,1743257436749,-1755.532506,0.00032907,7]
[356819973,1743257436759,-1755.532506,0.00032907,7]
[356819974,1743257436768,-151.0,0.00032907,7]
[356819975,1743257436778,-151.0,0.00032907,7]
[356819976,1743257436788,-151.0,0.00032907,7]
[356819977,1743257436797,-151.0,0.00032907,7]
[356819978,1743257436807,-254.016823,0.00032907,7]
[356819979,1743257436816,-151.0,0.00032907,7]
[356819980,1743257436826,-151.0,0.00032907,7]
[356819981,1743257436836,-151.0,0.00032907,7]
[356819982,1743257436846,-152.80469,0.00032907,7]
[356819983,1743257436855,-240.0,0.00032907,2]
[356819984,1743257436864,-951.88,0.0003291,30]
[356819985,1743257436874,-2661.91251063,0.0003291,7]
[356819986,1743257436883,-153.51091992,0.0003291,14]
[356819987,1743257436893,-37171.82388927,0.0003291,2]
[356819988,1743257436902,-22679.53413039,0.0003291,2]
[356819989,1743257436911,-2568.75830939,0.0003291,2]
[356819990,1743257436920,-19618.4834836,0.0003291,2]
[356819991,1743257436930,-570.24552898,0.0003291,2]
[356819992,1743257436939,-1827.9421009,0.0003291,2]
[356819993,1743257436949,-3227.52099113,0.0003291,2]
[356819994,1743257436958,-153.6815167,0.0003291,2]
[356819995,1743257436968,-174.53246963,0.0003291,2]
[356819996,1743257436977,-7051.53802638,0.0003291,2]
[356819997,1743257436987,-550.0,0.0003291,2]
[356819998,1743257436997,-1459.24888684,0.0003291,2]
[356819999,1743257437007,-1003.15935545,0.0003291,2]
[356820000,1743257437016,-799.21171001,0.0003291,2]
[356820001,1743257437026,-10653.02064192,0.0003291,2]
[356820002,1743257437040,-155941.2187304,0.0003291,2]
[356820003,1743257437163,-14879.28390182,0.0003291,2]
[356820004,1743257437174,-227.93147127,0.0003291,2]
[356820005,1743257437184,-172.98133857,0.0003291,2]
[356820006,1743257437194,-6000.0,0.0003291,2]
[356820007,1743257437204,-373.75466399,0.0003291,2]
[356820008,1743257437214,-1464.00204735,0.0003291,2]
[356820009,1743257437225,-1028.86068668,0.0003291,2]
[356820010,1743257437234,-4828.8450818,0.0003291,2]
[356820011,1743257437246,-122122.47142881,0.0003291,2]
[356820012,1743257437256,-448.10635778,0.0003291,2]
[356820013,1743257437267,-1062.9232166,0.0003291,2]
[356820014,1743257437278,-21187.90270696,0.0003291,2]
[356820015,1743257437288,-2500.0,0.0003291,2]
[356820016,1743257437300,-577.03742321,0.0003291,2]
[356820017,1743257437310,-340.87136502,0.0003291,2]
[356820018,1743257437320,-900.81513789,0.0003291,2]
[356820020,1743257437330,-479.71113123,0.0003291,2]
[356820022,1743257437339,-10757.592844,0.0003291,2]
[356820024,1743257437349,-169.57444725,0.0003291,2]
[356820025,1743257437358,-1579.89559631,0.0003291,2]
[356820027,1743257437368,-55373.84290333,0.0003291,2]
[356820028,1743257437378,-49791.45612871,0.0003291,2]
[356820029,1743257437388,-545.44680006,0.0003291,2]
[356820030,1743257437397,-4987.62879733,0.0003291,2]
[356820031,1743257437407,-3000.0,0.0003291,2]
[356820032,1743257437417,-1007.28610578,0.0003291,2]
[356820033,1743257437427,-363.1841308,0.0003291,2]
[356820034,1743257437436,-2195.73919801,0.0003291,2]
[356820035,1743257437446,-282.43849688,0.0003291,2]
[356820037,1743257437456,-746.90934478,0.0003291,2]
[356820039,1743257437466,-14710.76958082,0.0003291,2]
[356820041,1743257437476,-1828.50691883,0.0003291,2]
[356820043,1743257437486,-1112.62849643,0.0003291,2]
[356820044,1743257437496,-14001.17132774,0.0003291,2]
[356820045,1743257437506,-219.31598122,0.0003291,2]
[356820046,1743257437516,-10152.01077355,0.0003291,2]
[356820047,1743257437526,-8106.54737806,0.0003291,2]
[356820048,1743257437536,-1697.91324238,0.0003291,2]
[356820049,1743257437546,-1424.11271046,0.0003291,2]
[356820050,1743257437555,-5370.76746561,0.0003291,2]
[356820051,1743257437565,-201.80054783,0.0003291,2]
[356820052,1743257437575,-281.33686755,0.0003291,2]
[356820053,1743257437584,-5656.25332526,0.0003291,2]
[356820054,1743257437594,-748.14281261,0.0003291,2]
[356820055,1743257437603,-1008.48543499,0.0003291,2]
[356820056,1743257437612,-1101.35316264,0.0003291,2]
[356820057,1743257437622,-162.91,0.0003291,2]
[356820058,1743257437631,-160.9295278,0.0003291,2]
[356820059,1743257437640,-2162.6159522,0.0003291,2]
[356820060,1743257437650,-150.0,0.0003291,2]
[356820061,1743257437660,-301.04633654,0.0003291,2]
[356820062,1743257437670,-154.97624,0.0003291,7]
[356820063,1743257437679,-151.0,0.0003291,7]
[356820064,1743257437688,-151.0,0.0003291,7]
[356820065,1743257437698,-151.0,0.0003291,7]
[356820067,1743257437707,-151.0,0.0003291,7]
[356820069,1743257437717,-151.0,0.0003291,7]
[356820071,1743257437726,-151.0,0.0003291,7]
[356820072,1743257437735,-151.0,0.0003291,7]
[356820073,1743257437745,-154.867652,0.0003291,7]
[356820074,1743257437755,-151.0,0.0003291,7]
[356820075,1743257437765,-151.0,0.0003291,7]
[356820076,1743257437775,-151.0,0.0003291,7]
[356820077,1743257437784,-151.0,0.0003291,7]
[356820078,1743257437794,-151.0,0.0003291,7]
[356820079,1743257437803,-153.352123,0.0003291,7]
[356820080,1743257437814,-151.0,0.0003291,7]
[356820081,1743257437824,-151.0,0.0003291,7]
[356820082,1743257437833,-152.959287,0.0003291,7]
[356820083,1743257437843,-151.0,0.0003291,7]
[356820085,1743257437852,-151.0,0.0003291,7]
[356820087,1743257437862,-151.0,0.0003291,7]
[356820089,1743257437871,-151.0,0.0003291,7]
[356820091,1743257437880,-159.238005,0.0003291,7]
[356820093,1743257437889,-286.47239,0.0003291,7]
[356820095,1743257437899,-151.0,0.0003291,7]
[356820097,1743257437908,-160.820345,0.0003291,7]
[356820099,1743257437918,-183.830562,0.0003291,7]
[356820101,1743257437927,-151.0,0.0003291,7]
[356820103,1743257437937,-152.932152,0.0003291,7]
[356820105,1743257437947,-1755.532506,0.0003291,7]
[356820107,1743257437957,-1755.532506,0.0003291,7]
[356820109,1743257437966,-1755.532506,0.0003291,7]
[356820111,1743257437975,-1755.532506,0.0003291,7]
[356820113,1743257437985,-151.0,0.0003291,7]
[356820115,1743257437995,-151.0,0.0003291,7]
[356820116,1743257438004,-152.621421,0.0003291,7]
[356820117,1743257438014,-151.0,0.0003291,7]
[356820118,1743257438023,-151.0,0.0003291,7]
[356820119,1743257438036,-164.291643,0.0003291,7]
[356820120,1743257438047,-151.0,0.0003291,7]
[356820121,1743257438057,-151.0,0.0003291,7]
[356820122,1743257438066,-151.0,0.0003291,7]
[356820123,1743257438077,-151.0,0.0003291,7]
[356820124,1743257438087,-151.0,0.0003291,7]
[356820125,1743257438097,-155.610329,0.0003291,7]
[356820126,1743257438107,-169.19,0.00032932,120]
[356820127,1743257438118,-151.0319036,0.00032973,5]
[356820128,1743257438129,-334.36,0.00033,2]
[356820129,1743257438138,-24996.82329032,0.00033,2]
[356820130,1743257438149,-450.0,0.00033,2]
[356820131,1743257438158,-150.0,0.00033,14]
[356820132,1743257438168,-968.0,0.000331,2]
[356820133,1743257438177,-151.0,0.00033477,2]
[356820134,1743257438187,-1162.77137636,0.000335,2]
[356820135,1743257438197,-1438.33,0.000335,31]
[356820136,1743257438207,-1438.33,0.000335,31]
[356820137,1743257438216,-1438.33,0.000335,31]
[356820138,1743257438225,-1438.33,0.000335,31]
[356820139,1743257438234,-1438.33,0.000335,31]
[356820140,1743257438244,-1438.33,0.000335,31]
[356820141,1743257438254,-1438.33,0.000335,31]
[356820142,1743257438263,-1438.33,0.000335,31]
[356820143,1743257438272,-1438.33,0.000335,31]
[356820144,1743257438282,-1438.33,0.000335,31]
[356820145,1743257438291,-1438.33,0.000335,31]
[356820146,1743257438302,-1438.33,0.000335,31]
[356820147,1743257438312,-151.04,0.00033733,2]
[356820148,1743257438322,-1554.41,0.00033816,2]
[356820149,1743257438331,-158.02,0.00034192,2]
[356820150,1743257438341,-2500.0,0.000345,30]
[356820151,1743257438352,-3441.87875674,0.000348,2]
[356820152,1743257438361,-226.45289867,0.00035,2]
[356820153,1743257438371,-723.90478309,0.00035,40]
[356820154,1743257438382,-500.0,0.00035,2]
[356820155,1743257438392,-300.66,0.00035068,2]
[356820156,1743257438402,-8816.1697845,0.0003511,30]
[356820157,1743257438411,-151.0,0.0003511,7]
[356820158,1743257438421,-151.0,0.0003511,7]
[356820159,1743257438430,-168.680354,0.0003511,7]
[356820160,1743257438440,-151.0,0.0003511,7]
[356820161,1743257438450,-151.0,0.0003511,7]
[356820162,1743257438460,-151.0,0.0003511,7]
[356820163,1743257438470,-151.0,0.0003511,7]
[356820164,1743257438479,-1755.532506,0.0003511,7]
[356820165,1743257438489,-1755.532506,0.0003511,7]
[356820166,1743257438498,-151.0,0.0003511,7]
[356820167,1743257438508,-151.0,0.0003511,7]
[356820168,1743257438517,-151.0,0.0003511,7]
[356820169,1743257438526,-151.0,0.0003511,7]
[356820170,1743257438536,-151.0,0.00035335,7]
[356820171,1743257438545,-151.0,0.00035335,7]
[356820172,1743257438555,-279.656892,0.00035335,7]
[356820173,1743257438564,-1303.3893765,0.00035335,2]
[356820174,1743257438573,-150.0,0.00035616,2]
[356820175,1743257438583,-641.63719224,0.00036,2]
[356820176,1743257438592,-300.0,0.00036,2]
[356820177,1743257438601,-704.22,0.00036,5]
[356820178,1743257438610,-1554.41,0.00036079,2]
[356820179,1743257438620,-2471.33,0.000361,14]
[356820180,1743257438629,-1000.0,0.000362,6]
[356820181,1743257438638,-1000.0,0.00036337,6]
[356820182,1743257438647,-1000.0,0.00036474,6]
[356820183,1743257438657,-151.0,0.00036477,2]
[356820184,1743257438666,-2500.0,0.000365,40]
[356820185,1743257438677,-150.0,0.00036554,2]
[356820186,1743257438686,-1000.0,0.00036611,6]
[356820187,1743257438695,-1000.0,0.00036748,6]
[356820188,1743257438704,-150.8,0.00036862,2]
[356820189,1743257438714,-1000.0,0.00036885,6]
[356820190,1743257438723,-1438.33,0.000369,31]
[356820191,1743257438733,-1438.33,0.000369,31]
[356820192,1743257438742,-1438.33,0.000369,31]
[356820193,1743257438751,-1438.33,0.000369,31]
[356820194,1743257438761,-1438.33,0.000369,31]
[356820195,1743257438771,-1438.33,0.000369,31]
[356820196,1743257438780,-1438.33,0.000369,31]
[356820197,1743257438789,-1438.33,0.000369,31]
[356820198,1743257438799,-1438.33,0.000369,31]
[356820199,1743257438808,-1438.33,0.000369,31]
[356820200,1743257438818,-1438.33,0.000369,31]
[356820201,1743257438827,-1438.33,0.000369,31]
[356820202,1743257438836,-1438.33,0.000369,31]
[356820203,1743257438846,-1438.33,0.000369,31]
[356820204,1743257438856,-1438.33,0.000369,31]
[356820205,1743257438865,-1438.33,0.000369,31]
[356820206,1743257438875,-1438.33,0.000369,31]
[356820207,1743257438884,-1438.33,0.000369,31]
[356820208,1743257438893,-1438.33,0.000369,31]
[356820209,1743257438903,-1438.33,0.000369,31]
[356820210,1743257438913,-1438.33,0.000369,31]
[356820211,1743257438922,-1438.33,0.000369,31]
[356820212,1743257438932,-1438.33,0.000369,31]
[356820213,1743257438941,-1438.33,0.000369,31]
[356820214,1743257438952,-550.0,0.00037,2]
[356820215,1743257438961,-1000.0,0.00037022,6]
[356820216,1743257438971,-155.35,0.00037026,2]
[356820217,1743257438980,-878.96785543,0.000371,3]
[356820218,1743257438990,-1000.0,0.00037159,6]
[356820219,1743257438999,-1000.0,0.00037296,6]
[356820220,1743257439008,-150.0,0.00037491,2]
[356820221,1743257439017,-13941.84,0.000376,2]
[356820222,1743257439027,-172.20776555,0.000377,2]
[356820223,1743257439039,-62038.57174751,0.00038,4]
[356820224,1743257439049,-1000.0,0.00038,2]
[356820225,1743257439059,-22863.0,0.00038299,2]
[356820226,1743257439068,-1554.41,0.00038343,2]
[356820227,1743257439079,-150.0,0.00038428,2]
[356820228,1743257439089,-2500.0,0.000385,50]
[356820229,1743257439098,-942.037,0.00038525,52]
[356820230,1743257439108,-152.0,0.00038528,3]
[356820231,1743257439120,-1303.3893765,0.00038741,2]
[356820232,1743257439240,-499.5988,0.00038888,30]
[356820233,1743257439250,-1690.34355111,0.00039,120]
[356820234,1743257439260,-600.0,0.00039,2]
[356820235,1743257439271,-150.0,0.00039366,2]
[356820236,1743257439280,-2471.33,0.000395,14]
[356820237,1743257439290,-517.92001608,0.00039726,15]
[356820238,1743257439301,-2777.9,0.000398,2]
[356820239,1743257439312,-1054.0799531,0.00039853,2]
[356820240,1743257439322,-3792.7458063,0.00039853,2]
[356820241,1743257439332,-255131.6220979,0.0003988,2]
[356820242,1743257439342,-151.0,0.0003988,14]
[356820243,1743257439351,-151.0,0.0003988,14]
[356820244,1743257439361,-151.0,0.0003988,14]
[356820245,1743257439371,-151.0,0.0003988,14]
[356820246,1743257439381,-177.908415,0.0003988,14]
[356820247,1743257439390,-151.0,0.0003988,14]
[356820248,1743257439401,-151.0,0.0003988,14]
[356820250,1743257439411,-151.0,0.0003988,14]
[356820251,1743257439421,-199.945092,0.0003988,14]
[356820252,1743257439432,-151.0,0.0003988,14]
[356820253,1743257439441,-1755.532506,0.0003988,14]
[356820255,1743257439451,-1755.532506,0.0003988,14]
[356820257,1743257439461,-151.0,0.0003988,14]
[356820259,1743257439471,-151.0,0.0003988,14]
[356820261,1743257439480,-187.067393,0.0003988,14]
[356820263,1743257439489,-151.0,0.0003988,14]
[356820265,1743257439499,-530.06,0.0004,2]
[356820267,1743257439509,-154.462,0.0004,120]
[356820269,1743257439518,-800.0,0.0004,4]
[356820271,1743257439528,-202.3402727,0.0004,2]
[356820272,1743257439537,-219.10490225,0.0004,30]
[356820273,1743257439547,-905.20577053,0.0004,4]
[356820274,1743257439557,-150.0,0.00040303,2]
[356820275,1743257439566,-1438.33,0.000404,31]
[356820276,1743257439576,-1438.33,0.000404,31]
[356820277,1743257439586,-1438.33,0.000404,31]
[356820278,1743257439596,-1438.33,0.000404,31]
[356820279,1743257439608,-1438.33,0.000404,31]
[356820280,1743257439618,-1438.33,0.000404,31]
[356820281,1743257439628,-1438.33,0.000404,31]
[356820282,1743257439637,-1438.33,0.000404,31]
[356820283,1743257439647,-1438.33,0.000404,31]
[356820284,1743257439657,-1438.33,0.000404,31]
[356820285,1743257439667,-1438.33,0.000404,31]
[356820286,1743257439676,-1438.33,0.000404,31]
[356820287,1743257439686,-1438.33,0.000404,31]
[356820288,1743257439696,-1438.33,0.000404,31]
[356820289,1743257439706,-1438.33,0.000404,31]
[356820290,1743257439715,-1438.33,0.000404,31]
[356820291,1743257439725,-1438.33,0.000404,31]
[356820292,1743257439735,-1438.33,0.000404,31]
[356820293,1743257439744,-1438.33,0.000404,31]
[356820294,1743257439754,-1438.33,0.000404,31]
[356820295,1743257439764,-1438.33,0.000404,31]
[356820296,1743257439774,-1438.33,0.000404,31]
[356820297,1743257439783,-1438.33,0.000404,31]
[356820298,1743257439793,-1438.33,0.000404,31]
[356820299,1743257439803,-2500.0,0.000405,60]
[356820300,1743257439814,-152.0,0.00040568,4]
[356820301,1743257439823,-500.0,0.000406,31]
[356820302,1743257439833,-505.0,0.000406,31]
[356820303,1743257439842,-503.97248934,0.000406,31]
[356820304,1743257439852,-1554.41,0.00040607,2]
[356820305,1743257439862,-151.04,0.00040616,2]
[356820306,1743257439872,-878.96,0.000407,8]
[356820307,1743257439882,-2000.0,0.00040821,120]
[356820308,1743257439891,-526.62094707,0.00040821,120]
[356820309,1743257439902,-31564.5668086,0.000409,2]
[356820310,1743257439911,-705.97,0.00041,2]
[356820311,1743257439921,-277.05069269,0.00041,30]
[356820312,1743257439931,-2471.33,0.00041,14]
[356820313,1743257439941,-55753.3,0.00041,90]
[356820314,1743257439951,-650.0,0.00041,2]
[356820315,1743257439961,-159.0,0.00041,14]
[356820316,1743257439971,-1500.0,0.00041095,120]
[356820317,1743257439980,-531.42792578,0.00041095,120]
[356820318,1743257439990,-975.75146103,0.00041095,120]
[356820319,1743257439999,-150.0,0.00041095,30]
[356820320,1743257440009,-1956.0,0.00041096,90]
[356820321,1743257440018,-187.88856525,0.00041096,2]
[356820322,1743257440028,-500.0,0.00041143,30]
[356820323,1743257440040,-500.0,0.00041151,30]
[356820324,1743257440050,-151.54090672,0.00041232,30]
[356820325,1743257440059,-500.0,0.00041239,30]
[356820326,1743257440070,-150.0,0.0004124,2]
[356820327,1743257440080,-500.0,0.00041351,30]
[356820328,1743257440089,-500.0,0.00041368,30]
[356820329,1743257440098,-500.0,0.00041402,30]
[356820330,1743257440108,-158.02,0.00041534,2]
[356820331,1743257440119,-500.0,0.00041545,30]
[356820332,1743257440129,-500.0,0.00041573,30]
[356820333,1743257440138,-500.0,0.00041593,30]
[356820334,1743257440148,-204.0,0.0004163,30]
[356820336,1743257440157,-13941.84,0.000417,2]
[356820338,1743257440166,-502.00769638,0.00041752,30]
[356820340,1743257440176,-500.0,0.00041801,30]
[356820342,1743257440185,-502.43592337,0.00041814,30]
[356820344,1743257440194,-200.0,0.00041835,2]
[356820346,1743257440203,-200.0,0.00041835,2]
[356820348,1743257440213,-200.0,0.00041835,2]
[356820350,1743257440222,-200.0,0.00041835,2]
[356820352,1743257440231,-200.0,0.00041835,2]
[356820354,1743257440241,-200.0,0.00041835,2]
[356820356,1743257440250,-200.0,0.00041835,2]
[356820358,1743257440259,-200.0,0.00041835,2]